Workbook

Sheet Calculator
A1: Dual-Eligible PACE Plan Beneficiary Accumulated True Out-of-Pocket Cost Calculator INSTRUCTIONS: 1. Ensure that macros are enabled 2. Enter the Plan Year, incoming Current Year TGDC Transfer from Non-PACE, Current Year TrOOP Transfer from Non-PACE, and Current Year Dual-Eligible TGDC amounts in columns A through D row 3 3. Press CTRL-R on the keyboard 4. Beneficiary's year-to-date Total True Out-of-Pocket Cost will appear in column E row 3 5. Clear cells by pressing CTRL-D on the keyboard
A2: Plan Year | B2: Current Year TGDC Transfer from Non-PACE* | C2: Current Year TrOOP Transfer from Non-PACE* | D2: Current Year Dual-Eligible TGDC* | E2: Total True Out-of-Pocket Cost
A3: 2024
A5: *Enter values without commas or special characters (e.g., 1000.00 instead of 1,000.00)

Sheet all years
A1: Bene Year | B1: Deductible - Low | C1: Deductible - High | D1: Amt in phase | E1: Deductible - % | F1: Cost Sharing - Low | G1: Cost Sharing - High | H1: Amt in phase | I1: Cost Sharing - % | J1: Coverage Gap - Low | K1: Coverage Gap - High | L1: Amt in phase | M1: Coverage Gap - % | N1: Catastrophic - Low | O1: Catastrophic - % | P1: Catastrophic - TrOOP Threshhold
A2: 2021 | B2: ='2021'!$B$7 -> 0 | C2: ='2021'!$C$7 -> 445 | D2: ='2021'!$D$7 -> 445 | E2: ='2021'!$E$7 -> 0.98 | F2: ='2021'!$B$8 -> 445.01 | G2: ='2021'!$C$8 -> 4130 | H2: ='2021'!$D$8 -> 3685 | I2: ='2021'!$E$8 -> 0.23 | J2: ='2021'!$B$9 -> 4130.01 | K2: ='2021'!$C$9 -> 9503.83 | L2: ='2021'!$D$9 -> 5373.83 | M2: ='2021'!$E$9 -> 0.98 | N2: ='2021'!$B$10 -> 9503.84 | O2: ='2021'!$E$10 -> 0.05 | P2: ='2021'!$C$3 -> 6550
A3: 2022 | B3: ='2022'!$B$7 -> 0 | C3: ='2022'!$C$7 -> 480 | D3: ='2022'!$D$7 -> 480 | E3: ='2022'!$E$7 -> 0.98 | F3: ='2022'!$B$8 -> 480.01 | G3: ='2022'!$C$8 -> 4430 | H3: ='2022'!$D$8 -> 3950 | I3: ='2022'!$E$8 -> 0.23 | J3: ='2022'!$B$9 -> 4430.01 | K3: ='2022'!$C$9 -> 10216.84 | L3: ='2022'!$D$9 -> 5786.84 | M3: ='2022'!$E$9 -> 0.98 | N3: ='2022'!$B$10 -> 10216.85 | O3: ='2022'!$E$10 -> 0.05 | P3: ='2022'!$C$3 -> 7050
A4: 2023 | B4: ='2023'!$B$7 -> 0 | C4: ='2023'!$C$7 -> 505 | D4: ='2023'!$D$7 -> 505 | E4: ='2023'!$E$7 -> 0.98 | F4: ='2023'!$B$8 -> 505.01 | G4: ='2023'!$C$8 -> 4660 | H4: ='2023'!$D$8 -> 4155 | I4: ='2023'!$E$8 -> 0.23 | J4: ='2023'!$B$9 -> 4660.01 | K4: ='2023'!$C$9 -> 10730.87 | L4: ='2023'!$D$9 -> 6070.87 | M4: ='2023'!$E$9 -> 0.98 | N4: ='2023'!$B$10 -> 10730.88 | O4: ='2023'!$E$10 -> 0.05 | P4: ='2023'!$C$3 -> 7400
A5: 2024 | B5: ='2024'!$B$7 -> 0 | C5: ='2024'!$C$7 -> 545 | D5: ='2024'!$D$7 -> 545 | E5: ='2024'!$E$7 -> 0.98 | F5: ='2024'!$B$8 -> 545.01 | G5: ='2024'!$C$8 -> 5030 | H5: ='2024'!$D$8 -> 4485 | I5: ='2024'!$E$8 -> 0.23 | J5: ='2024'!$B$9 -> 5030.01 | K5: ='2024'!$C$9 -> 11595.66 | L5: ='2024'!$D$9 -> 6565.66 | M5: ='2024'!$E$9 -> 0.98 | N5: ='2024'!$B$10 -> 11595.67 | O5: ='2024'!$E$10 -> 0.05 | P5: ='2024'!$C$3 -> 8000

Sheet 2021 (hidden)
A1: Benefit Year | C1: 2021
A3: Catastrophic TrOOP Threshold | C3: 6550
B5: Phase TGDC | E5: Percentage
A6: Benefit Phase | B6: Lower | C6: Upper (High) | D6: Amount | E6: LICS
A7: Deductible | B7: 0 | C7: 445 | D7: 445 | E7: 0.98
A8: Initial Cost-sharing | B8: =C7+0.01 -> 445.01 | C8: 4130 | D8: =C8-C7 -> 3685 | E8: 0.23
A9: Coverage Gap | B9: =C8+0.01 -> 4130.01 | C9: 9503.83 | D9: =C9-C8 -> 5373.83 | E9: 0.98
A10: Catastrophic | B10: =C9+0.01 -> 9503.84 | C10: N/A | D10: N/A | E10: 0.05

Sheet 2022 (hidden)
A1: Benefit Year | C1: 2022
A3: Catastrophic TrOOP Threshold | C3: 7050
B5: Phase TGDC | E5: Percentage
A6: Benefit Phase | B6: Lower | C6: Upper (High) | D6: Amount | E6: LICS
A7: Deductible | B7: 0 | C7: 480 | D7: 480 | E7: 0.98
A8: Initial Cost-sharing | B8: =C7+0.01 -> 480.01 | C8: 4430 | D8: =C8-C7 -> 3950 | E8: 0.23
A9: Coverage Gap | B9: =C8+0.01 -> 4430.01 | C9: 10216.84 | D9: =C9-C8 -> 5786.84 | E9: 0.98
A10: Catastrophic | B10: =C9+0.01 -> 10216.85 | C10: N/A | D10: N/A | E10: 0.05

Sheet 2023 (hidden)
A1: Benefit Year | C1: 2023
A3: Catastrophic TrOOP Threshold | C3: 7400
B5: Phase TGDC | E5: Percentage
A6: Benefit Phase | B6: Lower | C6: Upper (High) | D6: Amount | E6: LICS
A7: Deductible | B7: 0 | C7: 505 | D7: 505 | E7: 0.98
A8: Initial Cost-sharing | B8: =C7+0.01 -> 505.01 | C8: 4660 | D8: =C8-C7 -> 4155 | E8: 0.23
A9: Coverage Gap | B9: =C8+0.01 -> 4660.01 | C9: 10730.87 | D9: =C9-C8 -> 6070.87 | E9: 0.98
A10: Catastrophic | B10: =C9+0.01 -> 10730.88 | C10: N/A | D10: N/A | E10: 0.05

Sheet 2024 (hidden)
A1: Benefit Year | C1: 2024
A3: Catastrophic TrOOP Threshold | C3: 8000
B5: Phase TGDC | E5: Percentage
A6: Benefit Phase | B6: Lower | C6: Upper (High) | D6: Amount | E6: LICS
A7: Deductible | B7: 0 | C7: 545 | D7: 545 | E7: 0.98
A8: Initial Cost-sharing | B8: =C7+0.01 -> 545.01 | C8: 5030 | D8: =C8-C7 -> 4485 | E8: 0.23
A9: Coverage Gap | B9: =C8+0.01 -> 5030.01 | C9: 11595.66 | D9: =C9-C8 -> 6565.66 | E9: 0.98
A10: Catastrophic | B10: =C9+0.01 -> 11595.67 | C10: N/A | D10: N/A | E10: 0.05
